[Event "15th Arad Open 2022"]
[Site "Arad"]
[Date "2022.08.12"]
[Round "7.18"]
[White "Iuga, Ioan-Alexandru"]
[Black "Moerman, Thomas"]
[Result "0-1"]
[ECO "C01"]
[WhiteElo "1848"]
[BlackElo "2026"]
[Annotator "TA"]
[PlyCount "72"]
[EventDate "2022.08.08"]
[EventType "swiss"]
[EventCountry "ROU"]
[SourceTitle "playchess.com"]
[Source "ChessBase"]
[SourceQuality "1"]
[TimeControl "5400+30"]

{[%evp 13,72,-9,5,-9,-8,-8,-10,-22,-20,-26,-22,-22,-21,-27,-14,-26,-23,-27,-22,-34,0,0,0,0,0,0,0,0,0,-16,0,-33,-27,-20,-31,-45,-50,-52,-33,-33,-37,-30,-29,-39,-38,-31,-26,-29,-54,-49,-46,-55,-45,-62,-38,-122,-120,-438,-420,-468,-522]} 1. e4 {[%emt 0:00:02]} e6 {[%emt 0:00:08]} 2. d4 {[%emt 0:00:05]} d5 {[%emt 0:00:06]} 3. exd5 {[%emt 0:00:04]} exd5 {[%emt 0:00:06]} 4. Nf3 {[%emt 0:00:05]} Bd6 {[%emt 0:01:15]} 5. Bd3 {[%emt 0:00:29]} Nc6 {[%emt 0:00:19]} 6. c3 {[%emt 0:02:16]} Nge7 {[%emt 0:00:19]} 7. Bg5 {[%emt 0:09:08]} Bg4 {[%emt 0:02:51]} 8. Nbd2 {[%emt 0:04:46][%cal Bb1d2,Bd2b3,Bb3c5,Bc5d3][%mdl 32] C01: French: Exchange Variation.} Qd7 {[%emt 0:00:36]} 9. Qc2 {[%emt 0:02:26]} f6 {[%emt 0:01:42]} 10. Be3 {[%emt 0:04:46] The position is equal.} Bf5 {[%emt 0:02:52]} 11. Nb3 {[%emt 0:10:09]} O-O-O {[%emt 0:03:07]} 12. O-O-O {[%emt 0:04:36] [#]} Kb8 $146 {[%emt 0:01:24]} ({Predecessor:} 12... Bxd3 13. Qxd3 Qf5 14. Qe2 Rhe8 15. Nfd2 Ng6 16. g3 Nf8 17. Rhe1 Nd7 18. Na1 Nb6 {0-1 (52) Petruska,M (1912)-Khamidov,K (2056) Brno 2011}) 13. Kb1 {[%emt 0:14:47]} h5 {[%emt 0:03:10]} 14. Rhe1 {[%emt 0:05:29]} g5 {[%emt 0:02:00][%cal Bg7g5,Bg5g4][%mdl 32]} 15. Nc5 {[%emt 0:05:06]} Qc8 {[%emt 0:08:03]} 16. h3 {[%emt 0:20:50]} g4 {[%emt 0:04:39]} 17. Nh4 {[%emt 0:04:27]} Bxd3 {[%emt 0:00:48]} 18. Nxd3 {[%emt 0:01:27]} gxh3 {[%emt 0:00:24]} 19. gxh3 {[%emt 0:00:01]} Qxh3 {[%emt 0:00:19]} 20. Rh1 {[%emt 0:00:04]} Qg4 {[%emt 0:07:05]} 21. f3 {[%emt 0:02:34]} Qc8 {[%emt 0:05:22]} 22. Nf4 {[%emt 0:00:56]} Bxf4 {[%emt 0:04:19]} 23. Bxf4 {[%emt 0:00:01]} Rdg8 {[%emt 0:00:22]} 24. Rdg1 {[%emt 0:01:20]} Rxg1+ {[%emt 0:05:27]} 25. Rxg1 {[%emt 0:00:01]} Qh3 {[%emt 0:00:13]} 26. Qh2 $1 {[%emt 0:00:04]} Qxh2 {[%emt 0:00:52]} 27. Bxh2 {[%emt 0:00:00]} Rg8 {[%emt 0:00:13] Against Rg7} 28. Rxg8+ {[%emt 0:01:53]} Nxg8 $11 {[%emt 0:00:45][%mdl 4096] Endgame KBN-KNN} 29. Nf5 {[%emt 0:02:59]} Nce7 {[%emt 0:01:07]} 30. Ng7 {[%emt 0:00:30]} h4 {[%emt 0:04:41]} 31. Kc2 {[%emt 0:00:35]} Kc8 {[%emt 0:00:07]} 32. Kd3 {[%emt 0:01:26]} Kd7 {[%emt 0:02:41] Against Ne8} 33. Ke3 {[%emt 0:00:14]} Ng6 {[%emt 0:00:09]} 34. f4 {[%emt 0:01:05]} (34. Kf2 $15) 34... Nh6 $17 {[%emt 0:00:30]} 35. Kf3 {[%emt 0:00:28][%mdl 8192] [#] Prevents Ng4.} (35. f5 $17 Ne7 36. Kf4) 35... f5 $1 $19 {[%emt 0:01:58]} 36. Bg1 {[%emt 0:01:46]} Ke7 {[%emt 0:01:00] Weighted Error Value: White=0.33/Black=0.05 (flawless)} 0-1

[Event "15th Arad Open 2022"]
[Site "Arad"]
[Date "2022.08.12"]
[Round "7.19"]
[White "Chima, Radu-Niculin"]
[Black "Muranyi, Erich"]
[Result "1-0"]
[ECO "B85"]
[WhiteElo "2005"]
[BlackElo "1867"]
[Annotator "TA"]
[PlyCount "83"]
[EventDate "2022.08.08"]
[EventType "swiss"]
[EventCountry "ROU"]
[SourceTitle "playchess.com"]
[Source "ChessBase"]
[SourceQuality "1"]
[TimeControl "5400+30"]

{[%evp 21,83,12,11,0,0,0,0,0,-9,0,-18,-14,-28,-40,-33,-36,-46,-46,-31,-51,-34,-72,-45,-46,-42,-40,-5,-20,26,-79,-36,-34,18,-60,87,-33,100,95,295,41,264,303,291,160,154,157,133,153,199,189,354,356,416,409,383,289,696,688,683,676,678,681,1160,1152]} 1. e4 {[%emt 0:00:03]} c5 {[%emt 0:01:48]} 2. Nf3 {[%emt 0:00:02]} Nc6 {[%emt 0:00:06]} 3. d4 {[%emt 0:00:08]} cxd4 {[%emt 0:00:05]} 4. Nxd4 {[%emt 0:00:07]} Nf6 {[%emt 0:00:04]} 5. Nc3 {[%emt 0:00:15]} d6 {[%emt 0:00:04]} 6. Be2 {[%emt 0:02:49]} e6 {[%emt 0:00:09]} 7. O-O {[%emt 0:02:04]} Be7 {[%emt 0:00:07]} 8. Be3 {[%emt 0:01:27]} O-O {[%emt 0:00:09]} 9. Kh1 {[%emt 0:04:34]} Qc7 {[%emt 0:01:47]} 10. f4 {[%emt 0:04:47]} a6 {[%emt 0:01:08]} 11. Bf3 {[%emt 0:00:43]} Na5 {[%emt 0:10:20]} 12. Qd3 {[%emt 0:01:46] B85: Sicilian Scheveningen: 6 Be2 a6, lines with early Be3.} Nc4 {[%emt 0:09:23]} 13. Bc1 {[%emt 0:01:31]} e5 {[%emt 0:04:29]} 14. Nde2 {[%emt 0:05:24] The position is equal.} b5 {[%emt 0:01:40][%cal Bb7b5,Bb5b4][%mdl 32]} 15. b3 {[%emt 0:01:20]} Nb6 {[%emt 0:02:00] [#]} 16. a4 $146 {[%emt 0:03:31]} ({Predecessor:} 16. Be3 Bb7 17. Rac1 Rfe8 18. Ng3 Rac8 19. Nd5 Nbxd5 20. exd5 Qc3 21. Qxc3 Rxc3 22. Bd2 {½-½ (65) Klundt,K (2375)-Jansa,V (2480) Passau 1998}) 16... b4 {[%emt 0:07:14]} 17. a5 {[%emt 0:03:22]} Nbd7 {[%emt 0:01:26]} 18. Nd5 {[%emt 0:02:54]} Nxd5 {[%emt 0:00:09]} 19. Qxd5 {[%emt 0:03:44]} Bb7 {[%emt 0:06:28]} 20. Qd2 {[%emt 0:01:37]} Nf6 {[%emt 0:06:40]} 21. fxe5 {[%emt 0:02:55]} dxe5 {[%emt 0:00:34]} 22. Ng3 {[%emt 0:00:31]} Rfd8 {[%emt 0:00:32]} 23. Qe2 {[%emt 0:01:38]} Rac8 {[%emt 0:01:39]} 24. Nf5 {[%emt 0:03:13]} Bf8 {[%emt 0:00:27]} (24... h6 $142) 25. Ra2 {[%emt 0:04:48]} (25. Bg5 $11 {keeps the balance.}) 25... Qd7 {[%emt 0:18:38]} 26. Bg5 {[%emt 0:02:44][%cal Of5h6,Bc1g5,Bg5d8,Bd8b6][%mdl 32] Black must now prevent Nh6+!} Qe6 {[%emt 0:00:35]} (26... Rc6 $15) 27. Ne3 {[%emt 0:05:31]} (27. Ng3 $11) 27... Rc5 {[%emt 0:09:20]} (27... Bxe4 $15 28. Bxf6 Bxf3 29. Qxf3 Qxf6 30. Qxf6 gxf6) 28. Nd5 {[%emt 0:02:52] [#]} (28. Bxf6 $16 gxf6 29. Nd5) 28... Bxd5 {[%emt 0:02:26]} (28... Nxd5 $1 $15 {keeps the upper hand.} 29. exd5 Rdxd5 30. Bxd5 Bxd5) 29. exd5 $16 {[%emt 0:00:20]} Nxd5 {[%emt 0:00:13]} 30. Bg4 $2 {[%emt 0:06:49] A strong pair of Bishops.} ({White has to play} 30. Bxd8 $18 Nc3 31. Qf2 $1 (31. Bg4 Qd5 $16) 31... Nxa2 32. Bb6) 30... Qg6 $2 {[%emt 0:02:41]} 31. Bxd8 $18 {[%emt 0:01:33] Threatens to win with Bh5.} Nc3 {[%emt 0:00:08] [#]} 32. Bh5 {[%emt 0:04:09]} (32. Qf2 $1 $18) 32... Nxe2 $16 {[%emt 0:01:37]} 33. Bxg6 {[%emt 0:00:57]} hxg6 {[%emt 0:00:10]} 34. c4 $36 {[%emt 0:01:05][%cal Bc2c4,Bc4c5][%mdl 2080] Black is under strong pressure.} Nc3 {[%emt 0:02:40]} (34... Nd4 $16) 35. Rd2 $18 {[%emt 0:01:57]} e4 $2 {[%emt 0:00:47]} (35... Ne4 36. Rd7 Rc6) 36. Bb6 {[%emt 0:00:35]} Re5 {[%emt 0:03:33]} 37. Rd8 {[%emt 0:02:06]} f5 {[%emt 0:01:50]} 38. c5 {[%emt 0:03:46] c6 is the strong threat.} Kf7 $2 {[%emt 0:03:29]} (38... Re6 39. Ra8 Rc6) 39. c6 {[%emt 0:00:20] And now c7 would win. White is clearly winning.} Nb5 {[%emt 0:00:15]} 40. c7 {[%emt 0:00:00]} Nxc7 {[%emt 0:00:00]} 41. Bxc7 {[%emt 0:00:00]} Rc5 {[%emt 0:00:00] [#]} 42. Rxf8+ $1 {[%emt 0:00:00] Weighted Error Value: White=0.40/Black=0.68} 1-0

[Event "15th Arad Open 2022"]
[Site "Arad"]
[Date "2022.08.12"]
[Round "7.20"]
[White "Samu, Sorin-Mihai"]
[Black "Kiraly, Lilla Virag"]
[Result "1-0"]
[ECO "E17"]
[WhiteElo "1952"]
[BlackElo "1787"]
[Annotator "TA"]
[PlyCount "119"]
[EventDate "2022.08.08"]
[EventType "swiss"]
[EventCountry "ROU"]
[SourceTitle "playchess.com"]
[Source "ChessBase"]
[SourceQuality "1"]
[TimeControl "5400+30"]

{[%evp 17,119,0,5,16,46,22,58,17,37,0,30,23,48,-23,17,17,17,-121,31,21,19,0,44,0,0,-23,68,67,68,68,68,70,66,58,62,35,89,22,29,16,29,7,128,113,129,119,140,125,114,125,135,132,226,226,335,352,322,337,284,275,389,357,279,138,475,372,380,346,354,306,170,0,0,0,445,0,445,316,174,191,895,0,0,0,772,0,947,920,1143,1179,1516,1362,4109,2965,2221,1238,29988,29989,29992,29993,29993,29994,29995,29993]} 1. d4 {[%emt 0:04:20]} Nf6 {[%emt 0:00:18]} 2. c4 {[%emt 0:00:12]} e6 {[%emt 0:00:17]} 3. Nf3 {[%emt 0:00:29]} b6 {[%emt 0:00:21]} 4. g3 {[%emt 0:00:13]} Ba6 {[%emt 0:00:23]} 5. Qc2 {[%emt 0:00:58]} Bb7 {[%emt 0:03:26]} 6. Bg2 {[%emt 0:00:42]} c5 {[%emt 0:00:46]} 7. O-O {[%emt 0:01:33]} Nc6 {[%emt 0:03:06]} 8. dxc5 {[%emt 0:00:36]} Bxc5 {[%emt 0:00:27]} 9. Nc3 {[%emt 0:00:47]} O-O {[%emt 0:02:20]} 10. a3 {[%emt 0:00:19] E17: Queen's Indian: 4 g3 Bb7 5 Bg2 Be7.} a5 {[%emt 0:08:25] [#]} 11. Na4 $146 {[%emt 0:00:38]} ({Predecessor:} 11. Bf4 h6 12. Rad1 Qe7 13. Nb5 Ne8 14. Rd2 g5 15. Be5 Nxe5 16. Nxe5 Bxg2 17. Kxg2 d6 {1-0 (72) Stephan,V (2439)-Cornette,D (2400) Europe Echecs INT 2020}) 11... d6 {[%emt 0:10:34]} 12. Rd1 {[%emt 0:02:09] White is slightly better.} Qe7 {[%emt 0:01:51]} 13. Qb3 {[%emt 0:00:59]} Rab8 {[%emt 0:07:51]} 14. Bg5 {[%emt 0:00:30]} (14. Nxb6 Ba6 15. Qc2 Rxb6) (14. Nxb6 $2 Ba6 15. Qc2 Rxb6 $19) 14... Ba6 {[%emt 0:05:59]} 15. Rd2 {[%emt 0:01:46]} (15. Qc3) (15. Qc3 $14) 15... h6 {[%emt 0:01:44]} (15... Bxf2+ 16. Kxf2 Ne4+ 17. Ke1 Nxg5 18. Nxg5 Ne5) (15... Bxf2+ $5 16. Kxf2 Ne4+ 17. Ke1 Nxg5 18. Nxg5 Ne5 $11) 16. Bxf6 {[%emt 0:01:42]} Qxf6 {[%emt 0:00:24]} 17. Rad1 {[%emt 0:02:05]} (17. e3 $11 {keeps the balance.}) 17... Rfd8 $2 {[%emt 0:08:56]} (17... Ne5 $17 {aiming for ...Rfc8.} 18. Nxe5 Qxf2+ 19. Kh1 dxe5) 18. Nc3 $14 {[%emt 0:00:54]} Qe7 {[%emt 0:09:11]} 19. e3 {[%emt 0:00:33]} Na7 {[%emt 0:01:37]} 20. Nd4 {[%emt 0:00:28] Against b5} Bxd4 {[%emt 0:09:54]} 21. Rxd4 {[%emt 0:00:11]} Qc7 {[%emt 0:02:02]} (21... b5 $11) 22. Nb5 {[%emt 0:00:39] White is much more active. The black rooks are badly placed.} Nxb5 {[%emt 0:07:13]} 23. cxb5 {[%emt 0:00:40]} Bb7 {[%emt 0:00:27]} 24. Bxb7 {[%emt 0:00:24]} Rxb7 {[%emt 0:00:15]} 25. Rc4 $36 {[%emt 0:00:20][%mdl 2048] White fights for an advantage.} Qe7 {[%emt 0:02:08]} 26. e4 {[%emt 0:00:52]} Qf6 {[%emt 0:04:49]} (26... d5 $14 27. exd5 exd5) 27. Rc6 {[%emt 0:00:31]} ({Better is} 27. Qc3 $16) 27... Qe5 $11 {[%emt 0:00:24]} 28. f3 {[%emt 0:03:59]} Rbb8 {[%emt 0:02:55]} 29. a4 {[%emt 0:00:14]} (29. Rd2 {looks sharper.} d5 30. Qd1 Rdc8 31. exd5 exd5 32. Rxd5 Qxb2 33. a4) 29... g6 {[%emt 0:02:31]} (29... d5 $11) 30. Qc3 $1 $16 {[%emt 0:00:25]} Qxc3 31. bxc3 {[%emt 0:00:32][%mdl 4096] Endgame KRR-KRR} (31. Rxc3 $6 Kf8 $14) 31... d5 {[%emt 0:03:01]} 32. exd5 exd5 {[%emt 0:00:18]} 33. Kf2 $1 {[%emt 0:00:38]} Kg7 {[%emt 0:00:58]} 34. Ke3 $1 {[%emt 0:00:23]} Rbc8 {[%emt 0:01:15]} (34... Re8+ $16 {is a better defense.} 35. Kd3 Re6) 35. c4 $1 $18 (35. Rxb6 Rxc3+ 36. Rd3 d4+ 37. Kd2 Rc4 $11) 35... dxc4 {[%emt 0:00:42]} (35... d4+ {keeps fighting.} 36. Rxd4 Re8+ 37. Kd3 Rxc6 38. bxc6 Re6) 36. Rxd8 {[%emt 0:02:50]} Rxd8 {[%emt 0:00:17]} 37. Rxc4 {[%emt 0:02:04] KR-KR} (37. Rxb6 Rd3+ 38. Ke4 Ra3 $16) 37... Rd1 {[%emt 0:00:46]} 38. Ke4 $1 {[%emt 0:01:04]} h5 {[%emt 0:00:51]} (38... Kf8 $142 39. Ke5 Rd3) 39. Rd4 {[%emt 0:00:32]} Rc1 {[%emt 0:00:34]} 40. Kd5 {[%emt 0:00:00]} (40. Rd6 $18 {and White stays clearly on top.}) 40... Rc3 $2 {[%emt 0:00:00][%mdl 8192]} (40... Rc8 $16 {is a better chance.}) 41. f4 {[%emt 0:00:00]} Kf6 {[%emt 0:00:00][%cal Oh5h4]} 42. Kd6 $1 {[%emt 0:00:00]} Rc2 {[%emt 0:00:00]} 43. h3 {[%emt 0:00:00]} Rc3 {[%emt 0:00:00]} 44. g4 $2 {[%emt 0:00:00]} (44. Kd7 $18) 44... h4 $1 $11 {[%emt 0:00:00]} ({Don't take} 44... Rxh3 45. gxh5 gxh5 46. Kc6 $16) 45. Kd7 {[%emt 0:00:00]} Kg7 $2 {[%emt 0:00:00][%mdl 8192] [#]} (45... Rxh3 $11 46. Rd6+ Kg7) 46. Re4 $2 {[%emt 0:00:00]} ({Less strong is} 46. Rd6 Rxh3 47. Kc6 Re3 48. Kxb6 Re6 49. Rxe6 fxe6 50. Kxa5 h3 $16) (46. g5 $1 $18 Kh7 47. Rd6 Rxh3 48. Kc6) 46... Rc5 $2 {[%emt 0:00:47][%mdl 8192] [#]} ({But not} 46... Rxh3 47. Kc6 $16) (46... Kh6 $11) 47. g5 $1 $18 {[%emt 0:00:00]} Rc3 {[%emt 0:01:37]} (47... Rc2 $142 48. f5 gxf5 49. Rxh4 Kg6) 48. Rd4 {[%emt 0:00:00]} Rc5 $2 {[%emt 0:00:57]} (48... Rxh3 49. Kc6 Rb3) 49. f5 $2 {[%emt 0:00:00]} ({Only move:} 49. Rd6 $18 Rc3 50. Rxb6 Rxh3 51. Rc6) 49... gxf5 $11 {[%emt 0:00:33] Threatens to win with ...Kg6.} (49... Rxf5 $2 50. Kc6 $18) 50. Rxh4 {[%emt 0:00:00] Rh6 is the strong threat.} Rc3 $2 {[%emt 0:01:11][%mdl 8192]} (50... Re5 $11) 51. Rd4 $2 {[%emt 0:00:00]} ({White has to play} 51. Rh6 $18 Rc4 52. Rxb6 Rxa4 53. Rc6) 51... Rc5 $2 {[%emt 0:00:55][%mdl 8192]} (51... Rxh3 52. Kc6 f6 53. gxf6+ Kxf6 54. Kxb6 $18) (51... Re3 $11) 52. h4 $18 {[%emt 0:00:00][%cal Bh3h4,Bh4h5,Bh5h6][%mdl 32]} Rc3 {[%emt 0:00:37]} 53. h5 {[%emt 0:00:00]} Rc5 {[%emt 0:00:28]} 54. Rd6 {[%emt 0:00:00] Strongly threatening h6+.} Rc4 {[%emt 0:00:29]} 55. h6+ {[%emt 0:00:00]} Kg8 {[%emt 0:00:30]} 56. Ke7 {[%emt 0:00:00] White threatens Rd8+ and mate.} Re4+ {[%emt 0:00:17]} 57. Kf6 {[%emt 0:00:14] White mates.} Re6+ {[%emt 0:00:28]} 58. Rxe6 {[%emt 0:00:25]} fxe6 {[%emt 0:00:09]} 59. g6 {[%emt 0:00:32][%cal Bg5g6,Bg6g7][%mdl 32]} f4 {[%emt 0:00:12]} 60. g7 {[%emt 0:00:11] Weighted Error Value: White=0.55/Black=0.87} 1-0

[Event "15th Arad Open 2022"]
[Site "Arad"]
[Date "2022.08.13"]
[Round "8.1"]
[White "Secheres, Adrian-Simion"]
[Black "Ramoutar, Alan-Safar"]
[Result "1/2-1/2"]
[ECO "D36"]
[WhiteElo "2360"]
[BlackElo "2453"]
[Annotator "TA"]
[PlyCount "47"]
[EventDate "2022.08.08"]
[EventType "swiss"]
[EventCountry "ROU"]
[SourceTitle "playchess.com"]
[Source "ChessBase"]
[SourceQuality "1"]
[TimeControl "5400+30"]

{[%evp 15,47,-9,-6,-10,-16,-16,-14,-18,-16,-8,-9,-25,-27,-29,-9,-32,-20,-50,-7,-12,-25,-16,0,0,0,0,0,0,0,0,20,8,26,0]} 1. d4 {[%emt 0:00:07]} d5 {[%emt 0:00:19]} 2. c4 {[%emt 0:00:21]} e6 {[%emt 0:00:12]} 3. Nc3 {[%emt 0:00:13]} c6 {[%emt 0:01:19]} 4. Nf3 {[%emt 0:01:29]} Nf6 {[%emt 0:00:09]} 5. cxd5 {[%emt 0:06:15]} exd5 {[%emt 0:00:13]} 6. Qc2 {[%emt 0:00:07]} Be7 {[%emt 0:01:38]} 7. Bg5 {[%emt 0:00:20]} g6 {[%emt 0:03:07]} 8. e3 {[%emt 0:03:32]} Bf5 {[%emt 0:00:35]} 9. Qb3 {[%emt 0:02:44] [#] Hoping for Bxf6. D36: Queen's Gambit Declined: Exchange Variation: Main line (5 Bg5 c6 6 Qc2).} Qb6 {[%emt 0:01:48]} 10. Nd2 {[%emt 0:04:49]} Nbd7 {[%emt 0:08:40]} 11. Be2 {[%emt 0:01:28] The position is equal.} Qxb3 {[%emt 0:02:00]} 12. Nxb3 {[%emt 0:01:35] [#]} a5 $146 {[%emt 0:00:41]} ({Predecessor:} 12... h6 13. Bh4 a5 14. a3 Ne4 15. Nxe4 Bxe4 16. Bxe7 Kxe7 17. O-O Rhe8 18. Rac1 Kd6 {½-½ (56) Spacek,P (2352)-Ernst,M (2199) Mali Losinj 2019}) 13. a4 {[%emt 0:08:15]} h6 {[%emt 0:24:19]} 14. Bh4 {[%emt 0:07:41]} O-O {[%emt 0:09:20]} (14... g5 $5 15. Bg3 Bb4 $11) 15. f3 {[%emt 0:06:22]} Rfe8 {[%emt 0:00:55]} (15... g5 $5 {[%cal Rg5h4]} 16. Bg3 Bb4 $15) 16. Bf2 {[%emt 0:04:35]} h5 {[%emt 0:06:34]} 17. Kd2 {[%emt 0:03:42]} Nb6 {[%emt 0:02:38]} 18. h3 {[%emt 0:13:41]} Bb4 {[%emt 0:06:38]} 19. g4 {[%emt 0:05:10]} Be6 {[%emt 0:08:07]} 20. Kc2 {[%emt 0:03:12]} Kg7 {[%emt 0:01:51]} 21. Bd3 {[%emt 0:06:06]} hxg4 {[%emt 0:03:19]} 22. hxg4 {[%emt 0:00:09]} Rh8 {[%emt 0:00:26]} 23. Bg3 {[%emt 0:01:46]} Nfd7 {[%emt 0:00:30]} 24. Bc7 {[%emt 0:01:58] Weighted Error Value: White=0.05 (flawless) /Black=0.06 (flawless)} 1/2-1/2

[Event "15th Arad Open 2022"]
[Site "Arad"]
[Date "2022.08.13"]
[Round "8.2"]
[White "David, Alexandru-Vasile"]
[Black "Stanciu, Alexandru-Ovidiu"]
[Result "1-0"]
[ECO "C54"]
[WhiteElo "2433"]
[BlackElo "2326"]
[Annotator "RC"]
[PlyCount "91"]
[EventDate "2022.08.08"]
[EventType "swiss"]
[EventCountry "ROU"]
[SourceTitle "playchess.com"]
[Source "ChessBase"]
[SourceQuality "1"]
[TimeControl "5400+30"]

1. e4 {[%emt 0:00:07]} e5 {[%emt 0:09:40]} 2. Nf3 {[%emt 0:00:12]} Nc6 {[%emt 0:00:05]} 3. Bc4 {[%emt 0:00:07]} Bc5 {[%emt 0:00:09]} 4. d3 {[%emt 0:00:16]} Nf6 {[%emt 0:01:04]} 5. Bg5 {[%emt 0:00:10]} h6 {[%emt 0:02:48]} 6. Bh4 {[%emt 0:01:38]} d6 {[%emt 0:00:04]} 7. c3 {[%emt 0:00:08]} a5 {[%emt 0:00:58]} 8. Nbd2 {[%emt 0:00:08]} Ba7 {[%emt 0:02:42]} 9. O-O {[%emt 0:01:15]} Qe7 {[%emt 0:04:22]} 10. Re1 {[%emt 0:05:14]} O-O {[%emt 0:07:16]} 11. Nf1 {[%emt 0:06:13]} Be6 {[%emt 0:02:26]} 12. Bb5 {[%emt 0:04:29]} Kh8 {[%emt 0:39:53]} 13. d4 {[%emt 0:05:19]} g5 {[%emt 0:08:16]} 14. Bg3 {[%emt 0:03:10]} Nxe4 {[%emt 0:08:39]} 15. Rxe4 {[%emt 0:07:50]} f5 {[%emt 0:00:03]} 16. Re2 {[%emt 0:00:08]} f4 {[%emt 0:01:51]} 17. d5 {[%emt 0:02:58]} fxg3 {[%emt 0:00:04]} 18. hxg3 {[%emt 0:00:55]} g4 {[%emt 0:01:07]} 19. Nh4 {[%emt 0:00:26]} Qf7 {[%emt 0:03:25]} 20. dxe6 {[%emt 0:18:34]} Bxf2+ {[%emt 0:00:03]} 21. Kh2 {[%emt 0:00:41]} Qxe6 {[%emt 0:01:08]} 22. Bxc6 {[%emt 0:02:13]} bxc6 {[%emt 0:00:04]} 23. Qc2 {[%emt 0:00:08]} Bb6 {[%emt 0:00:48]} 24. Ng6+ {[%emt 0:00:59]} Kg7 {[%emt 0:00:02]} 25. Nxf8 {[%emt 0:00:11]} Rxf8 {[%emt 0:00:05]} 26. Kh1 {[%emt 0:00:18]} Rf5 {[%emt 0:05:10]} 27. Ne3 {[%emt 0:01:14]} Rh5+ {[%emt 0:00:32]} 28. Kg1 {[%emt 0:00:09]} d5 {[%emt 0:00:32]} 29. c4 {[%emt 0:06:19]} d4 {[%emt 0:00:37]} 30. c5 {[%emt 0:00:04]} Ba7 {[%emt 0:00:02]} 31. Nf1 {[%emt 0:01:27]} Qd5 {[%emt 0:00:25]} 32. Qd3 {[%emt 0:00:08]} Bxc5 {[%emt 0:00:15]} 33. Nd2 {[%emt 0:00:22]} Be7 {[%emt 0:01:52]} 34. Nc4 {[%emt 0:02:16]} Rg5 {[%emt 0:00:25]} 35. Rf1 {[%emt 0:00:28]} a4 {[%emt 0:00:22]} 36. b3 {[%emt 0:00:42]} axb3 {[%emt 0:00:06]} 37. axb3 {[%emt 0:00:04]} Bc5 {[%emt 0:00:25]} 38. Rfe1 {[%emt 0:01:29]} Bd6 {[%emt 0:00:24]} 39. Nxd6 {[%emt 0:00:28]} cxd6 {[%emt 0:00:06]} 40. Rf1 {[%emt 0:00:00]} c5 {[%emt 0:00:00]} 41. Rf5 {[%emt 0:00:00]} Rg6 {[%emt 0:00:00]} 42. Ref2 {[%emt 0:00:00]} Qe6 {[%emt 0:00:00]} 43. Qf1 {[%emt 0:00:00]} e4 {[%emt 0:00:00]} 44. Rf7+ {[%emt 0:00:00]} Kg8 {[%emt 0:00:00]} 45. R2f6 {[%emt 0:00:00]} Rxf6 {[%emt 0:00:00]} 46. Rxf6 {[%emt 0:00:00]} 1-0

[Event "15th Arad Open 2022"]
[Site "Arad"]
[Date "2022.08.13"]
[Round "8.3"]
[White "Padurean, Daniel-Cristian"]
[Black "Sedlak, Nikola"]
[Result "1/2-1/2"]
[ECO "B10"]
[WhiteElo "2126"]
[BlackElo "2480"]
[Annotator "TA"]
[PlyCount "81"]
[EventDate "2022.08.08"]
[EventType "swiss"]
[EventCountry "ROU"]
[SourceTitle "playchess.com"]
[Source "ChessBase"]
[SourceQuality "1"]
[TimeControl "5400+30"]

{[%evp 9,81,-12,4,-13,0,0,0,0,0,-9,-6,-12,-22,-37,-30,-28,-28,-25,-21,-37,0,0,0,-8,0,-51,-59,-91,0,0,0,1,0,-6,0,0,0,-1,0,0,0,0,6,0,0,0,0,0,0,0,0,0,0,-8,0,0,0,0,0,0,0,0,0,0,0,0,0,0,0,0,0,0,0,0]} 1. e4 {[%emt 0:00:04]} c6 {[%emt 0:00:35]} 2. Nf3 {[%emt 0:00:17]} d5 {[%emt 0:00:45]} 3. exd5 {[%emt 0:00:10]} cxd5 {[%emt 0:00:46]} 4. Ne5 {[%emt 0:00:16]} e6 {[%emt 0:01:27]} 5. d4 {[%emt 0:00:17]} Bd6 {[%emt 0:00:38]} 6. c3 {[%emt 0:05:15] B10: Caro-Kann: 2 d3 and 2 c4.} Ne7 {[%emt 0:00:33]} 7. Bd3 {[%emt 0:01:00]} Nbc6 {[%emt 0:02:20]} 8. f4 {[%emt 0:00:18]} O-O {[%emt 0:01:06]} 9. O-O {[%emt 0:01:41]} (9. Qh5 g6 10. Qe2 f6 11. Nxc6 Nxc6 $15) 9... f6 {[%emt 0:04:57]} 10. Qh5 {[%emt 0:12:27][%csl Gd3][%cal Rh5h7]} Nf5 {[%emt 0:00:23] [#]} 11. g4 $146 {[%emt 0:15:34] aiming for Nxc6.} ({Predecessor:} 11. Ng4 Bd7 12. Ne3 Nce7 13. Nxf5 Nxf5 14. Nd2 Qc7 15. g4 Nh6 16. Nb3 a5 17. a4 {½-½ (39) Hacker,C (2513)-Bross,H (2550) GER email 2007}) 11... fxe5 {[%emt 0:02:47]} 12. fxe5 {[%emt 0:00:53] [#]} Nxe5 $1 {[%emt 0:04:03]} 13. dxe5 {[%emt 0:04:14]} Bc5+ {[%emt 0:02:45]} 14. Kh1 {[%emt 0:01:18]} Qh4 {[%emt 0:08:58]} (14... g6 {is interesting.} 15. Qh3 Nh4 16. Bh6 Rxf1+ 17. Qxf1 Bd7) 15. Qxh4 {[%emt 0:02:47]} Nxh4 {[%emt 0:00:10]} 16. Rxf8+ {[%emt 0:00:19]} Bxf8 {[%emt 0:01:41]} 17. Nd2 {[%emt 0:14:48] Against Nf3} (17. Bf4 $1 $11) 17... g5 $15 {[%emt 0:11:31]} 18. Nb3 {[%emt 0:03:17] [#]} Nf3 {[%emt 0:00:56]} (18... h6 $1 $17 19. Nd4 Bg7) 19. Be2 $11 {[%emt 0:01:06] The position is equal.} Nxe5 {[%emt 0:00:07]} 20. Bxg5 {[%emt 0:00:04]} Bd7 {[%emt 0:07:04]} 21. Bf6 {[%emt 0:01:43]} Bg7 {[%emt 0:07:19]} 22. Bxe5 {[%emt 0:10:42]} Bxe5 {[%emt 0:00:42]} 23. Nc5 {[%emt 0:00:05][%csl LRb7,LRd7]} Bc6 {[%emt 0:09:24] A strong pair of Bishops.} 24. Bf3 {[%emt 0:00:40]} Kf7 {[%emt 0:06:10]} 25. Re1 {[%emt 0:00:25]} Bf6 {[%emt 0:06:54]} 26. Nxe6 {[%emt 0:07:56]} ({But not} 26. Rxe6 Be7 27. Rxe7+ Kxe7 $17) 26... Re8 {[%emt 0:02:41]} 27. g5 {[%emt 0:00:04]} Rxe6 {[%emt 0:00:28]} 28. Bh5+ {[%emt 0:01:14]} Ke7 $1 {[%emt 0:00:10]} 29. gxf6+ {[%emt 0:00:05]} Kxf6 {[%emt 0:00:05][%mdl 4096] Endgame KRB-KRB} 30. Rf1+ {[%emt 0:00:08]} Ke5 {[%emt 0:02:53] Threatens to win with ...d4+.} 31. Kg1 {[%emt 0:07:24]} Kd6 {[%emt 0:00:42]} 32. Bf3 {[%emt 0:00:52]} a5 {[%emt 0:03:29]} 33. Rd1 {[%emt 0:02:13]} Kc5 {[%emt 0:01:37]} 34. Kf2 {[%emt 0:01:38]} b5 {[%emt 0:03:08]} 35. a3 {[%emt 0:00:43]} Rh6 {[%emt 0:00:15]} 36. Kg3 {[%emt 0:00:10]} Kc4 {[%emt 0:01:06]} 37. Rd2 {[%emt 0:02:52]} Rg6+ {[%emt 0:00:49]} 38. Kf2 {[%emt 0:01:04]} Rf6 {[%emt 0:00:06][%cal Od5d4] White must now prevent ...d4!} 39. Kg3 {[%emt 0:00:39]} Rd6 {[%emt 0:01:53]} 40. Kf2 {[%emt 0:00:00]} Rf6 {[%emt 0:00:00][%cal Od5d4] Strongly threatening ...d4!} 41. Kg3 {[%emt 0:00:00] Weighted Error Value: White=0.06 (flawless) /Black=0.07 (flawless)} 1/2-1/2